bitfinex/quotes_ETHUSD_20250724
["timestamp","ask_amount","ask_price","bid_price","bid_amount"]
[1753315786026,3.0,3627.8,3627.7,0.1376]
[1753315786208,4.315,3627.9,3627.8,2.75649153]
[1753315786524,4.315,3627.9,3627.8,3.21029153]
[1753315786725,4.315,3627.9,3627.8,3.76029153]
[1753315786909,0.762,3628.6,3628.0,0.55]
[1753315787083,4.315,3628.5,3628.4,2.75603571]
[1753315787287,0.002,3628.8,3628.6,2.75585758]
[1753315787490,4.316,3628.8,3628.7,0.1376]
[1753315787795,7.316,3628.8,3628.7,0.1376]
[1753315788197,4.316,3628.8,3628.7,2.89340786]
[1753315788398,4.316,3628.8,3628.7,3.89720786]
[1753315789495,4.316,3628.8,3628.7,0.1376]
[1753315789846,7.316,3628.8,3628.7,0.1376]
[1753315791223,10.07173192,3628.8,3628.7,0.1376]
[1753315791613,3.0,3628.7,3627.6,3.57354332]
[1753315791813,2.75603571,3628.4,3628.3,0.1376]
[1753315792014,7.10348615,3628.4,3628.3,0.1376]
[1753315792323,7.52803571,3628.4,3628.3,0.1376]
[1753315792493,2.75618764,3628.2,3628.1,0.001]
[1753315792802,5.79063998,3628.2,3628.1,0.001]
[1753315793004,6.21518764,3628.2,3628.1,0.001]
[1753315795151,11.36088764,3628.2,3628.1,0.001]
[1753315797444,3.5832715,3627.3,3627.2,0.15]
[1753315797671,10.8962715,3627.3,3627.2,0.15]
[1753315797949,11.3552715,3627.3,3627.2,0.15]
[1753315800438,6.5651475,3627.2,3627.1,0.001]
[1753315800815,7.0241475,3627.2,3627.1,0.001]
[1753315802147,6.7027475,3627.2,3627.1,0.001]
[1753315802376,0.9458,3627.2,3627.1,0.001]
[1753315802557,8.0147475,3627.2,3627.1,0.001]
[1753315802734,11.0147475,3627.2,3627.1,0.001]
[1753315803644,10.2065475,3627.2,3627.1,0.001]
[1753315803834,0.7788,3627.8,3627.1,0.4548]
[1753315804035,4.312,3627.7,3627.1,0.5924]
[1753315804256,2.75673309,3627.5,3627.1,0.4548]
[1753315804462,4.34645994,3627.4,3627.1,0.4548]
[1753315804644,2.75590626,3628.6,3627.9,2.75635927]
[1753315804863,0.7788,3628.7,3628.1,2.75621101]
[1753315804864,4.312,3628.5,3628.1,2.75621101]
[1753315805078,3.0,3628.4,3628.2,3.20998534]
[1753315805374,2.75779174,3628.8,3628.2,3.20998534]
[1753315805375,4.312,3628.3,3628.2,2.75618534]
[1753315805570,3.0,3628.3,3628.2,2.75618534]
[1753315805772,4.312,3628.3,3628.2,2.75618534]
[1753315805981,0.002,3628.8,3628.2,3.20998534]
[1753315806177,3.0,3628.6,3628.3,2.75609503]
[1753315806471,4.312,3628.5,3628.3,0.4538]
[1753315806772,7.312,3628.5,3628.4,0.4538]
[1753315807540,4.312,3628.5,3628.4,0.4538]
[1753315808958,7.312,3628.5,3628.4,0.4538]
[1753315809360,7.312,3628.5,3628.2,0.7911]
[1753315809764,7.312,3628.5,3628.2,1.2253]
[1753315810780,7.312,3628.5,3628.3,0.4342]
[1753315812549,10.06796788,3628.5,3628.3,0.4342]
[1753315812749,7.312,3628.5,3628.3,0.4342]
[1753315813588,2.75603571,3628.4,3627.7,0.769]
[1753315813777,3.0,3628.2,3627.8,0.55]
[1753315813944,3.0,3628.0,3627.8,0.55]
[1753315814298,4.31,3627.9,3627.8,0.55]
[1753315814748,4.31,3627.9,3627.8,0.6876]
[1753315814947,4.31,3627.9,3627.8,0.1376]
[1753315815982,4.31,3627.9,3627.8,0.5718]
[1753315817774,4.31,3627.9,3627.8,0.1376]
[1753315818780,7.06641555,3627.9,3627.8,0.1376]
[1753315818981,4.31,3627.9,3627.8,0.1376]
[1753315819345,7.06641555,3627.9,3627.8,0.1376]
[1753315819680,10.51101555,3627.9,3627.8,0.1376]
[1753315819981,2.75681207,3627.4,3627.0,0.55]
[1753315820185,4.309,3627.3,3627.0,0.55]
[1753315820394,2.75669916,3627.6,3627.3,0.1376]
[1753315820594,7.06573375,3627.5,3627.3,0.1376]
[1753315820795,10.89245544,3627.4,3627.3,0.1376]
[1753315820995,7.309,3627.4,3627.3,0.1376]
[1753315821911,10.0657955,3627.4,3627.3,0.1376]
[1753315822275,7.309,3627.4,3627.3,0.1376]
[1753315823384,7.309,3627.4,3627.3,0.5718]
[1753315823573,4.309,3627.4,3627.3,4.0836715]
[1753315823773,0.7784,3628.0,3627.5,2.75671605]
[1753315823999,3.7784,3628.3,3627.6,0.4342]
[1753315824273,3.7784,3628.3,3627.8,2.89409136]
[1753315824497,4.309,3628.2,3627.9,0.4342]
[1753315824809,7.06519471,3628.2,3627.9,0.4342]
[1753315825004,3.0,3628.1,3627.9,0.4342]
[1753315825205,4.308,3628.0,3627.8,0.1376]
[1753315825380,0.1376,3628.4,3627.8,0.1376]
[1753315825583,0.8716,3628.9,3628.0,2.75633958]
[1753315825798,4.308,3628.7,3628.6,0.1376]
[1753315826116,7.308,3628.7,3628.6,0.1376]
[1753315826416,4.308,3628.7,3628.2,0.55]
[1753315826613,3.03444854,3628.6,3628.2,0.55]
[1753315826906,4.308,3628.5,3628.2,0.55]
[1753315827416,4.308,3628.5,3628.1,0.55]
[1753315827621,4.308,3628.5,3628.2,2.75618764]
[1753315827907,4.308,3628.5,3628.3,3.1903036]
[1753315828214,7.308,3628.5,3628.4,0.4342]
[1753315829118,7.308,3628.5,3628.4,3.19023571]
[1753315829475,0.002,3628.8,3628.7,2.75580786]
[1753315829690,7.309,3628.8,3628.6,0.55]
[1753315829896,3.0,3628.7,3628.6,0.55]
[1753315830093,4.309,3628.8,3628.6,0.55]
[1753315830291,3.0,3628.7,3628.5,0.8332]
[1753315830586,3.0,3628.7,3628.3,0.55]
[1753315830788,3.0,3628.5,3628.1,0.55]
[1753315831003,4.307,3628.6,3628.1,0.55]
[1753315831004,4.307,3628.4,3628.1,0.55]
[1753315831557,4.307,3628.4,3628.1,3.30625045]
[1753315831675,4.307,3628.4,3628.2,2.75618727]
[1753315832098,4.307,3628.4,3628.2,3.19038727]
[1753315832297,4.307,3628.4,3628.2,0.4342]
[1753315832534,4.307,3628.4,3628.1,0.55]
[1753315833010,4.307,3628.4,3628.2,0.55]
[1753315833613,4.307,3628.4,3628.2,2.75618432]
[1753315833783,4.307,3628.4,3628.2,3.19038432]
[1753315834116,4.307,3628.4,3628.3,0.4342]
[1753315834275,4.307,3628.4,3628.3,3.19031167]
[1753315835085,4.309,3628.4,3628.3,3.19031167]
[1753315835417,0.002,3628.4,3628.3,4.54131167]
[1753315836214,0.002,3628.4,3628.3,4.67891167]
[1753315842105,0.7672,3628.4,3628.3,0.1376]
[1753315842311,3.0,3628.3,3627.7,2.75651251]
[1753315842636,3.0,3628.3,3627.1,0.001]
[1753315842637,0.7652,3627.6,3627.1,0.001]
[1753315842798,5.75680997,3627.4,3627.1,0.001]
[1753315842994,3.52208766,3627.3,3627.1,0.001]
[1753315843340,5.7569475,3627.2,3627.1,0.001]
[1753315843511,7.70952607,3627.2,3627.1,0.001]
[1753315844338,7.3203817,3627.2,3627.1,0.001]
[1753315846657,11.2973475,3627.2,3627.1,0.001]
[1753315847531,6.9923475,3627.2,3627.1,0.001]
[1753315847700,11.2973475,3627.2,3627.1,0.001]
[1753315850657,10.8271475,3627.2,3627.1,0.001]
[1753315851141,11.2973475,3627.2,3627.1,0.001]
[1753315853038,11.4349475,3627.2,3627.1,0.001]
[1753315861696,6.6597475,3627.2,3627.1,0.001]
[1753315861990,7.9647475,3627.2,3627.1,0.001]
[1753315862205,0.94407387,3628.6,3627.1,0.001]
[1753315862206,0.1376,3627.4,3627.1,0.001]
[1753315862355,0.1376,3627.4,3627.1,0.4316]
[1753315862685,7.0618715,3627.3,3627.2,0.1376]
[1753315862886,5.7569475,3627.2,3627.1,0.001]
[1753315863585,7.0005475,3627.2,3627.1,0.001]
[1753315863790,7.1381475,3627.2,3627.1,0.001]
[1753315864358,6.6679475,3627.2,3627.1,0.001]
[1753315864556,5.8945475,3627.2,3627.1,0.001]
[1753315864772,10.0609475,3627.2,3627.1,0.001]
[1753315865283,3.0,3627.2,3627.1,0.4316]
[1753315865490,7.304,3627.2,3627.1,0.4316]
[1753315865789,7.304,3627.2,3627.1,0.001]
[1753315865976,7.304,3627.2,3627.1,0.4316]
[1753315866178,4.304,3627.2,3627.1,0.4316]
[1753315866961,7.304,3627.2,3627.1,0.4316]
[1753315869300,3.0,3627.2,3627.1,3.18862351]
[1753315869464,0.788,3628.0,3627.4,2.7567542]
[1753315869661,3.0,3627.8,3627.4,0.449]
[1753315869864,7.304,3627.7,3627.6,0.1376]
[1753315870497,3.0,3627.6,3627.1,0.001]
[1753315870798,3.0,3627.4,3627.3,0.1376]
[1753315871005,0.002,3628.4,3627.4,1.7806]
[1753315871204,2.75617198,3628.3,3627.6,2.75664351]
[1753315871372,4.303,3628.2,3627.5,3.75570891]
[1753315871572,4.303,3628.2,3627.8,2.75647574]
[1753315871898,4.303,3628.2,3628.0,2.75632388]
[1753315872100,4.303,3628.1,3628.0,2.75632388]
[1753315872699,4.303,3628.1,3628.0,4.03482388]
[1753315873572,4.303,3628.1,3628.0,1.2785]
[1753315873777,4.303,3628.1,3628.0,3.20533958]
[1753315874506,3.0,3628.2,3628.0,3.20533958]
[1753315874711,3.0,3628.2,3627.9,2.75640121]
[1753315874872,3.0,3628.2,3628.1,0.449]
[1753315877912,3.002,3628.2,3628.1,0.449]
[1753315878114,3.002,3628.2,3627.8,3.7554706]
[1753315878322,4.302,3628.1,3627.9,2.75640692]
[1753315878484,4.302,3628.1,3627.9,3.20540692]
[1753315878685,4.302,3628.1,3628.0,0.449]
[1753315878997,3.002,3628.2,3628.0,0.449]
[1753315879194,3.002,3628.2,3628.1,0.449]
[1753315879679,3.002,3628.2,3627.7,0.8295]
[1753315879879,4.33645329,3628.1,3627.7,0.8295]
[1753315880116,4.302,3628.1,3627.8,2.75648154]
[1753315880413,4.302,3628.1,3627.8,3.20548154]
[1753315880590,4.302,3628.1,3627.8,0.449]
[1753315880782,3.0,3628.0,3627.8,0.449]
[1753315880983,7.33545519,3627.9,3627.7,0.8295]
[1753315881181,4.301,3627.9,3627.7,0.8295]
[1753315881384,3.0,3627.8,3627.5,0.1376]
[1753315881615,4.301,3627.7,3627.5,0.1376]
[1753315881918,4.301,3627.7,3627.5,0.5866]
[1753315882085,4.301,3627.7,3627.5,0.1376]
[1753315882416,7.301,3627.7,3627.6,0.449]
[1753315882616,7.301,3627.7,3627.6,3.20564351]
[1753315885131,4.301,3627.7,3627.6,3.20564351]
[1753315885334,3.002,3628.2,3627.6,0.999]
[1753315885635,3.0,3628.0,3627.7,3.20552488]
[1753315885813,4.301,3627.9,3627.8,0.449]
[1753315886328,4.301,3627.9,3627.8,0.5866]
[1753315888439,0.03445329,3628.1,3628.0,2.75633958]
[1753315888618,0.002,3628.2,3628.1,2.7562636]
[1753315889041,0.002,3628.2,3628.1,3.2052636]
[1753315892431,0.002,3628.2,3628.1,3.7552636]
[1753315896376,0.002,3628.2,3627.9,0.55]
[1753315896920,0.002,3628.2,3627.9,3.30640305]
[1753315897128,0.063629,3628.2,3628.0,0.55]
[1753315897323,0.063629,3628.2,3627.6,1.2602]
[1753315897324,0.063629,3628.2,3627.6,2.75662644]
[1753315897564,3.0,3628.0,3627.4,1.2602]
[1753315897862,0.03445519,3627.9,3627.5,2.75664412]
[1753315898157,0.03445519,3627.9,3627.6,3.30662526]
[1753315898326,3.0,3627.8,3627.2,0.449]
[1753315898526,3.0,3627.8,3627.1,0.7896]
[1753315898527,4.33345709,3627.7,3627.1,0.001]
[1753315898728,5.75672249,3627.5,3627.4,0.1376]
[1753315898942,3.0,3627.5,3627.4,0.1376]
[1753315899141,5.79117849,3627.5,3627.4,0.1376]
[1753315899337,5.7567195,3627.5,3627.4,0.1376]
[1753315899539,6.1991195,3627.5,3627.4,0.1376]
[1753315899740,3.0,3627.6,3627.3,0.1376]
[1753315900066,3.0,3627.6,3627.3,2.89445889]
[1753315900266,0.063629,3628.2,3627.9,0.8021]
[1753315900473,0.063629,3628.2,3627.8,0.55]
[1753315900778,5.81981664,3628.2,3628.1,0.1376]
[1753315900944,10.11881664,3628.2,3628.1,0.1376]
[1753315901147,2.75633958,3628.0,3627.2,0.7853]
[1753315901333,0.7931,3627.6,3627.5,0.1376]
[1753315901661,8.0921,3627.6,3627.5,0.1376]
[1753315902441,10.84874351,3627.6,3627.5,0.1376]
[1753315902655,5.75675584,3627.5,3627.1,0.001]
[1753315902835,2.79126549,3627.4,3627.3,0.1376]
[1753315903465,2.7569475,3627.2,3627.1,0.001]
[1753315903773,10.09040934,3627.2,3627.1,0.001]
[1753315904071,10.0559475,3627.2,3627.1,0.001]
[1753315904234,10.4983475,3627.2,3627.1,0.001]
[1753315904632,10.0559475,3627.2,3627.1,0.001]
[1753315905633,7.299,3627.2,3627.1,0.001]
[1753315908274,3.0,3627.2,3627.1,0.001]
[1753315908476,7.299,3627.2,3627.1,0.1386]
[1753315908694,3.0,3627.2,3627.1,1.1259]
[1753315908845,0.7624,3628.0,3627.3,2.7568176]
[1753315909041,3.0,3627.8,3627.5,0.1376]
[1753315909779,2.75641888,3627.9,3627.5,0.1376]
[1753315909780,3.0,3627.6,3627.5,0.1376]
[1753315912282,2.75649305,3627.8,3627.5,0.1376]
[1753315912283,3.0,3627.8,3627.5,0.1376]
[1753315912862,3.0,3627.6,3627.5,0.5749]
[1753315913073,4.299,3627.6,3627.5,0.5749]
[1753315914686,7.299,3627.6,3627.5,0.5749]
[1753315915705,3.0,3627.6,3627.5,0.1376]
[1753315915866,7.299,3627.6,3627.5,0.5749]
[1753315919401,7.299,3627.6,3627.5,0.1376]
[1753315920018,10.05564351,3627.6,3627.5,0.1376]
[1753315920523,2.7569475,3627.2,3627.1,0.001]
[1753315920734,10.08940934,3627.2,3627.1,0.001]
[1753315921026,10.0549475,3627.2,3627.1,0.001]
[1753315921223,10.4973475,3627.2,3627.1,0.001]
[1753315921522,11.2671475,3627.2,3627.1,0.001]
[1753315921722,11.4047475,3627.2,3627.1,0.001]
[1753315926921,10.9623475,3627.2,3627.1,0.001]
[1753315927113,11.4047475,3627.2,3627.1,0.001]
[1753315930187,6.6643475,3627.2,3627.1,0.001]
[1753315930496,10.9623475,3627.2,3627.1,0.001]
[1753315931520,11.4261475,3627.2,3627.1,0.001]
[1753315933531,10.9623475,3627.2,3627.1,0.001]
[1753315933832,11.4261475,3627.2,3627.1,0.001]
[1753315935305,11.4261475,3627.2,3627.1,1e-08]
[1753315935510,12.01783899,3627.2,3627.1,1e-08]
[1753315935935,0.8011,3626.8,3626.3,1e-08]
[1753315936098,6.5586557,3626.4,3626.1,1e-08]
[1753315936304,2.75770779,3626.2,3626.1,1e-08]
[1753315936506,5.75770779,3626.2,3626.1,1e-08]
[1753315936846,6.22150779,3626.2,3626.1,1e-08]
[1753315937232,7.00490779,3626.2,3626.1,1e-08]
[1753315937736,7.1450886,3626.2,3626.1,1e-08]
[1753315939236,2.75801202,3625.8,3625.7,1e-08]
[1753315939436,5.89568809,3625.7,3625.6,1e-08]
[1753315939608,5.75824024,3625.5,3625.4,1e-08]
[1753315939804,10.05624024,3625.5,3625.4,1e-08]
[1753315940010,10.52004024,3625.5,3625.4,1e-08]
[1753315940653,10.19384024,3625.5,3625.4,1e-08]
[1753315942838,10.05624024,3625.5,3625.4,0.45520001]
[1753315943638,10.05624024,3625.5,3625.4,1e-08]
[1753315944426,10.05624024,3625.5,3625.4,0.45520001]
[1753315945049,3.0,3625.5,3625.4,0.45520001]
[1753315945250,7.298,3625.5,3625.4,0.45520001]
[1753315946458,3.0,3625.5,3625.4,1.83350001]
[1753315946626,7.298,3625.5,3625.4,4.59181633]
[1753315946825,3.0,3625.5,3625.4,4.59181633]
[1753315947025,7.298,3625.5,3625.4,4.59181633]
[1753315948348,7.298,3625.5,3625.4,1.83350001]
[1753315948856,3.0,3625.5,3625.4,4.59181633]
[1753315949058,4.297,3625.5,3625.4,4.5917831]
[1753315949638,4.297,3625.5,3625.4,1.83350001]
[1753315949850,10.05524024,3625.5,3625.4,1e-08]
[1753315958978,10.51904024,3625.5,3625.4,1e-08]
[1753315959153,11.28934024,3625.5,3625.4,1e-08]
[1753315959471,5.75831632,3625.4,3625.3,1e-08]
[1753315959772,7.04531632,3625.4,3625.3,1e-08]
[1753315962562,5.75846849,3625.2,3625.1,1e-08]
[1753315962766,10.82306849,3625.2,3625.1,1e-08]
[1753315962965,11.28046849,3625.2,3625.1,1e-08]
[1753315963748,11.87159336,3625.2,3625.1,1e-08]
[1753315964890,18.50059336,3625.2,3625.1,1e-08]
[1753315965258,14.20359336,3625.2,3625.1,1e-08]
[1753315965471,9.97859336,3625.2,3625.1,1e-08]
[1753315965688,9.38746849,3625.2,3625.1,0.45080001]
[1753315965873,9.38746849,3625.2,3625.1,1.24770001]
[1753315965874,6.629,3625.2,3625.1,1.24770001]
[1753315966081,10.925,3625.2,3625.1,1.24770001]
[1753315966402,6.629,3625.2,3625.1,1.24770001]
[1753315966574,10.925,3625.2,3625.1,1.24770001]
[1753315967094,13.925,3625.2,3625.1,1.24770001]
[1753315967611,7.296,3625.2,3625.1,1.24770001]
[1753315970607,3.0,3625.2,3625.1,1.24770001]
[1753315970819,7.296,3625.2,3625.1,4.0062446]
[1753315971378,7.296,3625.2,3625.1,1.24770001]
[1753315975289,3.0,3625.2,3625.1,1.24770001]
[1753315975489,7.295,3625.2,3625.1,1.24770001]
[1753315976312,7.294,3625.2,3625.1,1.24770001]
[1753315977386,7.294,3625.2,3625.1,1.38530001]
[1753315977828,7.294,3625.2,3625.1,0.13760001]
[1753315977986,7.294,3625.2,3625.1,0.58840001]
[1753315978925,2.999,3625.2,3625.1,0.58840001]
[1753315979125,7.293,3625.2,3625.1,0.58840001]
[1753315980827,7.293,3625.2,3625.1,3.3469446]
[1753315981028,0.73963572,3626.7,3625.1,0.58840001]
[1753315981029,0.8147,3626.2,3625.1,0.58840001]
[1753315981242,3.0,3626.0,3625.4,2.75824941]
[1753315981410,4.294,3625.9,3625.7,0.1376]
[1753315981594,2.75784318,3626.1,3625.7,0.1376]
[1753315981595,4.294,3625.8,3625.7,0.1376]
[1753315982125,7.294,3625.8,3625.7,0.1376]
[1753315982325,7.294,3625.8,3625.7,0.5884]
[1753315984306,10.05201202,3625.8,3625.7,0.1376]
[1753315984508,2.75846849,3625.2,3625.1,1e-08]
[1753315984698,10.08594934,3625.2,3625.1,1e-08]
[1753315984904,10.05146849,3625.2,3625.1,1e-08]
[1753315986210,10.05146849,3625.2,3625.1,0.00100001]
[1753315990001,5.75846849,3625.2,3625.1,0.00100001]
[1753315990240,10.05146849,3625.2,3625.1,0.00100001]
[1753315992434,3.0,3625.2,3625.1,0.00100001]
[1753315992735,10.05046849,3625.2,3625.1,0.00100001]
[1753315993953,7.292,3625.2,3625.1,0.00100001]
[1753315994468,10.05046849,3625.2,3625.1,0.00100001]
[1753315994952,7.292,3625.2,3625.1,0.43380001]
[1753315995319,10.05046849,3625.2,3625.1,0.43380001]
[1753315995551,10.05046849,3625.2,3625.1,0.00100001]
[1753315996661,10.05046849,3625.2,3625.1,0.43380001]
[1753315998924,7.292,3625.2,3625.1,0.43380001]
[1753315999354,7.291,3625.2,3625.1,0.43380001]
[1753315999556,10.04946849,3625.2,3625.1,0.43380001]
[1753316000158,7.291,3625.2,3625.1,0.43380001]
[1753316000433,10.04946849,3625.2,3625.1,0.43380001]
[1753316001348,7.291,3625.2,3625.1,0.43380001]
[1753316002067,3.0,3625.2,3625.1,0.43380001]
[1753316002275,7.291,3625.2,3625.1,0.43380001]
[1753316002448,10.04946849,3625.2,3625.1,0.43380001]
[1753316003676,7.291,3625.2,3625.1,0.43380001]
[1753316005167,7.291,3625.2,3625.1,0.00100001]
[1753316005366,10.04946849,3625.2,3625.1,0.00100001]
[1753316005583,3.0,3625.2,3625.1,0.43380001]
[1753316005867,7.29,3625.2,3625.1,1.81630001]
[1753316007265,4.29,3625.2,3625.1,1.81630001]
[1753316008367,7.04846849,3625.2,3625.1,0.00100001]
[1753316008568,7.05046849,3625.2,3625.1,0.00100001]
[1753316008782,4.292,3625.2,3625.1,0.00100001]
[1753316009068,4.32648085,3625.2,3625.1,0.00100001]
[1753316009270,4.292,3625.2,3625.1,0.00100001]
[1753316009472,4.292,3625.2,3625.1,0.43380001]
[1753316009766,0.002,3625.2,3625.1,0.43380001]
[1753316009947,4.291,3625.2,3625.1,3.1923446]
[1753316010150,4.291,3625.2,3625.1,0.43380001]
[1753316011070,0.002,3625.2,3625.1,0.43380001]
[1753316011574,4.291,3625.2,3625.1,0.43380001]
[1753316012687,4.291,3625.2,3625.1,3.1923446]
[1753316013101,4.291,3625.2,3625.1,0.43380001]
[1753316014693,0.002,3625.2,3625.1,0.43380001]
[1753316014864,4.29,3625.2,3625.1,0.43380001]
[1753316015487,4.29,3625.2,3625.1,3.1923446]
[1753316015809,0.002,3625.2,3625.1,3.7423446]
[1753316015996,4.29,3625.2,3625.1,4.4936446]
[1753316020902,0.002,3625.2,3625.1,4.4936446]
[1753316021072,4.289,3625.2,3625.1,4.4936446]
[1753316022972,0.002,3625.2,3625.1,4.4936446]
[1753316023174,4.289,3625.2,3625.1,4.4936446]
[1753316024027,0.002,3625.2,3625.1,4.4936446]
[1753316024175,4.289,3625.2,3625.1,4.4936446]
[1753316024487,0.002,3625.2,3625.1,4.4936446]
[1753316024689,4.288,3625.2,3625.1,4.4936446]
[1753316024882,0.002,3625.2,3625.1,4.4936446]
[1753316034942,0.002,3625.2,3625.1,0.55100001]
[1753316035140,0.002,3625.2,3625.1,0.00100001]
[1753316035433,0.4621,3625.2,3625.1,0.00100001]
[1753316036035,4.286,3625.2,3625.1,0.00100001]
[1753316041205,4.285,3625.2,3625.1,0.00100001]
[1753316042126,0.002,3625.2,3625.1,2.7595446]
[1753316042333,0.002,3625.2,3625.1,3.7463446]
[1753316047255,0.002,3625.2,3625.1,8.0283446]
[1753316048059,0.002,3625.2,3625.1,0.55100001]
[1753316048375,0.002,3625.2,3625.1,3.3095446]
[1753316049457,0.4762,3625.2,3625.1,0.00100001]
[1753316049661,7.00006849,3625.2,3625.1,0.00100001]
[1753316050050,7.13766849,3625.2,3625.1,0.00100001]
[1753316050666,7.13766849,3625.2,3625.1,1e-08]
[1753316050867,6.564149,3624.7,3624.6,1e-08]
[1753316051066,14.26277906,3624.7,3624.6,1e-08]
[1753316051660,14.73697906,3624.7,3624.6,1e-08]
[1753316051855,15.32805286,3624.7,3624.6,1e-08]
[1753316052633,15.32805286,3624.7,3624.1,1e-08]
[1753316052870,9.96215968,3624.2,3624.1,1e-08]
[1753316053172,5.75961034,3623.7,3622.1,0.04]
[1753316053349,6.54505313,3622.2,3622.1,0.04]
[1753316053538,10.82605313,3622.2,3622.1,0.04]
[1753316053739,11.30025313,3622.2,3622.1,0.04]
[1753316054374,10.82605313,3622.2,3622.1,0.04]
[1753316054756,8.0653,3622.2,3622.1,0.04]
[1753316055070,10.82605313,3622.2,3622.1,0.04]
[1753316055533,8.0653,3622.2,3622.1,0.04]
[1753316055738,10.82605313,3622.2,3622.1,0.04]
[1753316055939,8.0653,3622.2,3622.1,0.04]
[1753316056772,3.7843,3622.2,3622.1,0.04]
[1753316056952,8.0653,3622.2,3622.1,0.04]
[1753316060942,10.82605313,3622.2,3622.1,0.04]
[1753316063185,3.0,3622.2,3622.1,0.04]
[1753316063476,7.281,3622.2,3622.1,0.6256]
[1753316063783,7.281,3622.2,3622.1,0.1776]
[1753316064347,3.0,3622.2,3622.1,0.1776]
[1753316064552,7.282,3622.2,3622.1,0.6256]
[1753316064753,0.1376,3622.7,3622.1,0.1776]
[1753316064969,3.0,3622.5,3622.1,4.20609178]
[1753316065291,3.0,3622.3,3622.2,3.20875313]
[1753316065478,0.763,3623.1,3622.4,2.76054702]
[1753316065786,4.281,3623.0,3622.6,0.1376]
[1753316066089,3.0,3622.9,3622.6,0.1376]
[1753316066882,3.0,3622.7,3622.6,0.1376]
[1753316067083,4.281,3622.7,3622.6,0.1376]
[1753316067287,4.281,3622.7,3622.6,0.5856]
[1753316067489,3.0,3622.8,3622.6,3.34601495]
[1753316067663,3.0,3622.8,3622.7,0.448]
[1753316067864,3.0,3622.8,3622.6,0.1376]
[1753316068067,3.0,3622.8,3622.6,2.89804697]
[1753316068281,3.0,3622.8,3622.7,0.448]
[1753316069558,3.0,3622.8,3622.6,0.1376]
[1753316069759,3.0,3622.8,3622.6,0.5856]
[1753316070559,0.1376,3623.2,3622.7,0.448]
[1753316070772,4.28,3623.1,3622.7,1.349]
[1753316070960,3.0,3623.0,3622.8,0.448]
[1753316071160,7.28,3622.9,3622.8,0.448]
[1753316071600,7.28,3622.9,3622.8,0.5856]
[1753316071774,3.0,3622.9,3622.8,0.5856]
[1753316072158,4.28,3622.9,3622.8,0.5856]
[1753316073382,4.28,3622.9,3622.8,3.34586749]
[1753316073585,0.002,3623.1,3623.0,2.76014352]
[1753316073865,0.002,3623.1,3623.0,3.32391584]
[1753316074095,0.002,3623.1,3623.0,3.89574352]
[1753316074669,0.002,3623.1,3623.0,4.71384352]
[1753316074993,0.002,3623.1,3623.0,4.72761584]
[1753316075365,0.002,3623.1,3623.0,4.71384352]
[1753316079974,0.002,3623.1,3623.0,4.72761584]
[1753316080821,0.002,3623.9,3623.0,1.96747232]
[1753316080972,0.002,3623.9,3623.8,4.09743419]
[1753316081168,0.002,3623.9,3623.8,4.23503419]
[1753316081620,0.002,3623.9,3623.8,4.66413419]
[1753316082076,0.002,3623.9,3623.8,8.94113419]
[1753316084410,0.002,3623.9,3623.8,4.66413419]
[1753316084567,0.002,3623.9,3623.8,8.15323419]
[1753316090876,0.002,3623.9,3623.8,11.57186425]
[1753316096493,0.002,3623.9,3623.8,12.35746425]
[1753316099315,0.002,3623.9,3623.8,12.35346425]
[1753316100613,0.002,3623.9,3623.7,2.75958304]
[1753316100780,0.002,3623.9,3623.6,4.273]
[1753316100781,1.2614,3623.8,3623.6,4.273]
[1753316101115,0.8043,3623.8,3623.3,4.273]
[1753316101319,0.8043,3623.8,3623.5,2.75971447]
[1753316101486,0.8043,3623.8,3623.5,4.273]
[1753316101682,0.4571,3623.7,3623.3,2.75988182]
[1753316101907,0.4571,3623.7,3623.5,2.75975808]
[1753316102108,0.002,3623.9,3623.7,2.75961034]
[1753316102328,0.002,3623.9,3623.8,3.30953419]
[1753316102925,0.002,3623.9,3623.8,8.01163419]
[1753316103527,0.002,3623.9,3623.8,7.58253419]
[1753316103908,0.002,3623.9,3623.8,8.01163419]
[1753316107348,0.002,3623.9,3623.8,7.58253419]
[1753316110643,0.002,3623.9,3623.8,7.72013419]
[1753316110844,0.002,3623.9,3623.8,3.44713419]
[1753316111046,0.002,3623.9,3623.8,7.71813419]
[1753316111546,0.002,3623.9,3623.8,3.44713419]
[1753316114257,0.002,3623.9,3623.8,0.1376]
[1753316114258,1.2322,3623.9,3623.8,0.1376]
[1753316114407,1.2322,3623.9,3622.8,0.001]
[1753316114612,3.22798585,3623.8,3623.7,0.1376]
[1753316115148,3.46839417,3623.8,3623.7,0.1376]
[1753316115327,3.4339,3623.8,3623.7,0.1376]
[1753316115523,0.7983,3623.9,3623.7,0.1376]
[1753316115728,0.002,3623.9,3623.8,2.75953419]
[1753316116140,0.002,3623.9,3623.8,2.89713419]
[1753316116325,0.002,3623.9,3623.8,8.19239128]
[1753316116524,0.002,3623.9,3623.8,8.95333419]
[1753316123226,0.002,3623.9,3623.8,7.16613419]
[1753316123427,0.002,3623.9,3623.8,0.1376]
[1753316123626,0.4359,3623.9,3623.8,0.1376]
[1753316123871,0.4359,3623.9,3623.8,0.6876]
[1753316124249,0.4359,3623.9,3623.8,0.1376]